Cogmind - Beta 15 @@@ ROGUE MODE // 2025.06.20 @ 21:41:41 Player: erfael Result: Self-destructed Performance ------------- Evolutions (2) 1000 Regions Visited (3) 600 Robots Destroyed (15) 75 Value Destroyed (346) 346 Prototype IDs (0) 0 Alien Tech Used (0) 0 Bonus (0) 0 TOTAL SCORE: 2021 Bonus ------- None Cogmind --------- Core Integrity 334/550 Matter 197/300 Energy 160/160 System Corruption 0% Temperature Cool (0) Movement Core (550) Ox10 Location -8/Materials Parts ------- > --- POWER (1) -------- Light Nuclear Core > --- PROPULSION (4) --- (None) > --- UTILITY (4) ------ Large Storage Unit Improved Terrain Scanner Seismic Detector > --- WEAPON (2) ------- Light Assault Rifle Subdweller Machine Gun > --- INVENTORY (15) --- Improved Heat Sink Small Storage Unit Makeshift System Restoration Module Light Assault Rifle Mini Grenade Launcher Peak State ------------ > --- POWER ------------ Light Nuclear Core > --- PROPULSION ------- Aluminum Leg Aluminum Leg > --- UTILITY ---------- Large Storage Unit Improved Terrain Scanner Seismic Detector > --- WEAPON ----------- Light Assault Rifle Subdweller Machine Gun > --- INVENTORY -------- Improved Heat Sink Small Storage Unit Makeshift System Restoration Module Light Assault Rifle Mini Grenade Launcher [Rating: 14] Favorites ----------- Power Light Nuclear Core Engine Ion Engine Power Core Light Nuclear Core Propulsion Light Treads Treads Light Treads Leg Aluminum Leg Utility Seismic Detector Device Seismic Detector Storage Small Storage Unit Weapon Light Assault Rifle Ballistic Gun Light Assault Rifle Build | -11 -10 -10 -8 ------- Run | Yrd Mat Sub Mat Slots Evolved 4 | . . . 4 Power . | . . . . Propulsion 2 | . . . 2 Utility 2 | . . . 2 Weapon . | . . . . Parts Attached 19 | 7 6 . 6 Power 4 | 1 2 . 1 Engine 2 | 1 1 . . Core 2 | . 1 . 1 Reactor . | . . . . Propulsion 4 | 2 . . 2 Treads 2 | 2 . . . Leg 2 | . . . 2 Wheel . | . . . . Hover . | . . . . Flight . | . . . . Utility 6 | 2 3 . 1 Device 4 | 1 2 . 1 Storage 2 | 1 1 . . Processor . | . . . . Hackware . | . . . . Protection . | . . . . Artifact . | . . . . Weapon 5 | 2 1 . 2 Energy Gun . | . . . . Energy Cannon . | . . . . Ballistic Gun 5 | 2 1 . 2 Ballistic Cannon . | . . . . Launcher . | . . . . Special Weapon . | . . . . Impact Weapon . | . . . . Slashing Weapon . | . . . . Piercing Weapon . | . . . . Special Melee Weapon . | . . . . Unidentified Prototypes . | . . . . Parts Lost 11 | . 4 3 4 Power 3 | . 2 1 . Propulsion 4 | . . 1 3 Utility 1 | . 1 . . Weapon 3 | . 1 1 1 Highest Loss Streak 4 | . 2 3 4 To Critical Strikes . | . . . . Average Backups 5 | 2 4 7 7 Power . | . . . . Propulsion 1 | 1 2 2 1 Utility 1 | . . 2 3 Weapon 2 | . 2 2 3 Tool/Special . | . . . . Unused Backups 3 | . . . 3 Power . | . . . . Propulsion . | . . . . Utility 1 | . . . 1 Weapon 2 | . . . 2 Tool/Special . | . . . . Average Slot Usage (%) 90 | . 97 96 52 Engine 4 | . 6 . . Core 7 | . 5 13 6 Treads 24 | . 28 27 7 Device 13 | . 13 14 13 Storage 13 | . 14 14 9 Ballistic Gun 24 | . 27 26 9 Peak Build Rating 14 | 7 11 10 14 Average Rating 8 | 4 8 9 9 On Entrance 5 | . 7 9 5 Naked Turns . | . . . . Heaviest Build 29 | 14 29 29 28 Greatest Support 40 | 40 40 40 20 Greatest Overweight (x) 1 | 1 . 1 1 Average Overweight (x) . | . . . 1 Largest Inventory Capacity 15 | 8 15 15 15 Average Capacity 10 | 7 8 15 15 Most Carried 9 | 4 6 8 9 Average Carried 5 | 2 5 7 7 Final Capacity 15 | 8 15 15 15 Final Carried 8 | 4 6 8 5 Class Distribution -------------------- 100% | Mutant Dominant Class ---------------- Mutant | -10/Materials Mutant | -10/Subcaves Mutant | -8/Materials Resources | -11 -10 -10 -8 ----------- Run | Yrd Mat Sub Mat Matter Collected 493 | 241 252 . . Remotely . | . . . . Salvage Created 448 | 14 392 . 42 Parts 28 | 2 24 . 2 Haulers Intercepted . | . . . . Recyclers Shooed . | . . . . Parts Field Recycled . | . . . . Retrieved Matter . | . . . . Parts Self-Destructed 16 | . . 16 . Prevented . | . . . . Kills | -11 -10 -10 -8 ------- Run | Yrd Mat Sub Mat Combat Hostiles Destroyed 13 | . 12 . 1 Guns 13 | . 12 . 1 Classes Destroyed 4 | 1 2 . 1 Tunneler 2 | 1 1 . . Swarmer 6 | . 6 . . Grunt 6 | . 6 . . Hunter 1 | . . . 1 Best Kill Streak 4 | 1 4 . 1 Combat Bots Only 3 | . 3 . 1 Max Kills in Single Turn 2 | 1 2 . 1 Gunslinging 1 | . 1 . . Exploded . | . . . . Melee . | . . . . Uniques/NPCs Destroyed . | . . . . Combat | -11 -10 -10 -8 -------- Run | Yrd Mat Sub Mat Hostile Shots Fired 154 | . 86 20 48 Missed 32 | . 18 6 8 Hits 122 | . 68 14 40 Projectile 122 | . 68 14 40 Critical Strikes 3 | . . 2 1 Damage Taken 1526 | . 636 293 597 Core 420 | . 95 109 216 Absorbed by Shields . | . . . . Core Remaining (%) 59 | 100 . 18 . Volleys Fired 86 | 3 44 20 19 Largest 2 | 2 2 2 2 Hottest 50 | 40 40 40 50 Shots Fired 144 | 6 83 27 28 Gun 144 | 6 83 27 28 Cannon . | . . . . Launcher . | . . . . Special . | . . . . Kinetic 144 | 6 83 27 28 Thermal . | . . . . Explosive . | . . . . Electromagnetic . | . . . . Robot Hit Streak 10 | 2 8 10 6 Robot Miss Streak 5 | 1 5 1 4 Penetration Max . | . . . . Secondary Targets 3 | . 2 . 1 Max Gunslinging Chain 1 | . 1 . 1 Shots Hit Robots 82 | 3 44 16 19 Core Hits 32 | 2 22 4 4 Critical Kills . | . . . . Critical Parts Destroyed . | . . . . Critical Strikes . | . . . . Melee Attacks . | . . . . Impact . | . . . . Slashing . | . . . . Piercing . | . . . . Sneak Attacks . | . . . . Combat Hostiles . | . . . . Follow-up Attacks . | . . . . Damage Inflicted 842 | 25 497 123 197 Guns 842 | 25 497 123 197 Cannons . | . . . . Explosions . | . . . . Melee . | . . . . Ramming . | . . . . Kinetic 842 | 25 497 123 197 Thermal . | . . . . Explosive . | . . . . Electromagnetic . | . . . . Impact . | . . . . Slashing . | . . . . Piercing . | . . . . Highest Corruption . | . . . . Average Corruption . | . . . . Corruption Purged . | . . . . Corruption Blocked . | . . . . Overload Shots . | . . . . Overflow Damage . | . . . . Projectiles . | . . . . Explosions . | . . . . Melee . | . . . . Knockbacks . | . . . . Impact . | . . . . Kinetic . | . . . . Secondary . | . . . . Self-Inflicted Damage . | . . . . Shots . | . . . . Rammed . | . . . . Targets Rammed . | . . . . Kicked . | . . . . Crushed . | . . . . Highest Temperature 16 | . 16 . 13 Average Temperature 5 | . 6 . 5 Received Heat Transfer 225 | . 144 . 81 Siege Activations . | . . . . Martial Activations . | . . . . Shielding Activations . | . . . . Robots Disrupted . | . . . . Combat Hostiles . | . . . . Robots Corrupted . | . . . . Combat Hostiles . | . . . . Parts Fried . | . . . . Impact Corruptions . | . . . . Robots Melted . | . . . . Combat Hostiles . | . . . . Parts Melted . | . . . . Heat Transferred . | . . . . Parts Sabotaged . | . . . . Parts Stolen . | . . . . Parts Stripped . | . . . . Power Chain Reactions . | . . . . Alert | -11 -10 -10 -8 ------- Run | Yrd Mat Sub Mat Maximum Alert Level . | . . . . Low Security (%) 100 | 100 100 . 100 Level 1 . | . . . . Level 2 . | . . . . Level 3 . | . . . . Level 4 . | . . . . Level 5 . | . . . . High Security . | . . . . Max Security . | . . . . Peak Influence 74 | 5 74 . 30 Initial . | . . . . Average 17 | . 22 . 1 Influence Increases 345 | 5 310 . 30 Destroy 0b10 Robot/C 260 | . 240 . 20 Destroy 0b10 Robot/NC 10 | 5 5 . . Destroy Leader 60 | . 50 . 10 Lose Combat Pursuer 15 | . 15 . . Influence Decreases 325 | 5 260 50 10 Entered New Map 25 | . . 25 . Time Decay 270 | 5 230 25 10 Lost Part 30 | . 30 . . Squads Dispatched 2 | . 2 . . Investigation 1 | . 1 . . Extermination . | . . . . Reinforcement 1 | . 1 . . Assault . | . . . . Garrison . | . . . . Intercept . | . . . . Searches Triggered . | . . . . Construction Impeded . | . . . . Haulers Reinforced . | . . . . Active Scanning Responses . | . . . . Cargo Convoy Interrupts . | . . . . Stealth | -11 -10 -10 -8 --------- Run | Yrd Mat Sub Mat Distress Signals 4 | . 3 . 1 Communications Jammed . | . . . . Distress Signals . | . . . . Times Spotted 25 | . 19 3 3 Peak Tracking Total 4 | . 4 3 3 Tactical Retreats 1 | . 1 . . Traps | -11 -10 -10 -8 ------- Run | Yrd Mat Sub Mat Traps Triggered 1 | . 1 . . Indirectly . | . . . . Trap Hack Attempts . | . . . . Triggered . | . . . . Disarmed . | . . . . Reprogrammed . | . . . . Reused . | . . . . Traps Extracted . | . . . . Installed . | . . . . Triggered . | . . . . Machines | -11 -10 -10 -8 ---------- Run | Yrd Mat Sub Mat Machines Disabled . | . . . . Max in Single Turn . | . . . . Machines Repaired . | . . . . Machines Dismantled . | . . . . Machines Sabotaged . | . . . . Overloaded Fab Kills . | . . . . Hacking | -11 -10 -10 -8 --------- Run | Yrd Mat Sub Mat Machines Accessed . | . . . . Terminals . | . . . . Fabricators . | . . . . Repair Stations . | . . . . Recycling Units . | . . . . Scanalyzers . | . . . . Garrison Access . | . . . . Total Hacks . | . . . . Successful . | . . . . Failed . | . . . . Catastrophic . | . . . . Database Lockouts . | . . . . Manual . | . . . . Terminals . | . . . . Fabricators . | . . . . Repair Stations . | . . . . Recycling Units . | . . . . Scanalyzers . | . . . . Garrison Access . | . . . . Terminal Hacks . | . . . . Fabricator Hacks . | . . . . Repair Station Hacks . | . . . . Recycling Unit Hacks . | . . . . Scanalyzer . | . . . . Garrison Access Hacks . | . . . . Unauthorized Hacks . | . . . . Terminals . | . . . . Fabricators . | . . . . Repair Stations . | . . . . Recycling Units . | . . . . Scanalyzers . | . . . . Garrison Access . | . . . . Data Cores Recovered . | . . . . Used . | . . . . Hacking Detections . | . . . . Full Trace Events . | . . . . Feedback Events . | . . . . Feedback Blocked . | . . . . Robot Schematics Acquired . | . . . . Robots Built . | . . . . Authchips . | . . . . Time . | . . . . Total Robot Build Rating . | . . . . Part Schematics Acquired . | . . . . Parts Built . | . . . . Authchips . | . . . . Time . | . . . . Total Part Build Rating . | . . . . Parts Repaired . | . . . . Time . | . . . . Parts Recycled . | . . . . Recycled Matter . | . . . . Retrieved Matter . | . . . . Retrieved Components . | . . . . Parts Scanalyzed . | . . . . Part Schematics Acquired . | . . . . Parts Damaged . | . . . . Bothacking | -11 -10 -10 -8 ------------ Run | Yrd Mat Sub Mat Used RIF Installer . | . . . . Robots Hacked . | . . . . Non-combat . | . . . . Combat . | . . . . Robot Hacks Applied . | . . . . Relay Couplers Released . | . . . . Fabnet Peak Effective % . | . . . . Robots Rewired . | . . . . Allies Hacked . | . . . . Hacks Repelled . | . . . . Allies | -11 -10 -10 -8 -------- Run | Yrd Mat Sub Mat Total Allies . | . . . . Largest Group . | . . . . Highest-Rated Group . | . . . . Highest-Rated Ally . | . . . . Total Orders . | . . . . Ally Attacks . | . . . . Total Damage . | . . . . Kills . | . . . . Allies Corrupted . | . . . . Allies Melted . | . . . . Intel | -11 -10 -10 -8 ------- Run | Yrd Mat Sub Mat Active Infowar (turns) 1184 | 6 667 305 206 Terrain 112 | . . . 112 Seismic 1184 | 6 667 305 206 Robot Analysis Total . | . . . . Derelict Logs Recovered . | . . . . Drone Launches . | . . . . Drone Recoveries . | . . . . Exploration | -11 -10 -10 -8 ------------- Run | Yrd Mat Sub Mat Turns Passed 1536 | 84 941 305 206 Spaces Moved 757 | 42 484 162 69 Core 5 | 5 . . . Treads 729 | 37 484 162 46 Legs 23 | . . . 23 Wheels . | . . . . Hover . | . . . . Flight . | . . . . Fastest Speed 50 | 50 160 160 190 Average Speed 165 | 148 160 161 223 Slowest Speed 240 | 160 160 240 240 Overloaded Moves . | . . . . Propulsion Burnouts . | . . . . Robots Hopped . | . . . . Potential Cave-ins . | . . . . Cave-ins Triggered . | . . . . Exploration Rate (%) 15 | 4 45 8 5 Regions Visited 3 Branch Regions 1 Pre-discovered Areas . | . . . . Known Exits Taken . | . . . . Unknown Exits Taken 3 | 1 1 1 . Scrap Searched . | . . . . Spaces Dug . | . . . . Terrain Destroyed . | . . . . Melee . | . . . . Projectile . | . . . . AOE . | . . . . Terrain Rammed . | . . . . Walls Destroyed . | . . . . Machines Disabled . | . . . . Actions | -11 -10 -10 -8 --------- Run | Yrd Mat Sub Mat Total 907 | 55 574 183 95 Wait 37 | . 37 . . Move 754 | 41 483 161 69 Hop . | . . . . Pick Up 11 | 4 4 2 1 Fast Attach 10 | 7 1 . 2 Attach 7 | . 3 . 4 Detach . | . . . . Swap 2 | . 2 . . Drop . | . . . . Fire 86 | 3 44 20 19 Melee . | . . . . Ram . | . . . . Kick . | . . . . Crush . | . . . . Escape Stasis . | . . . . Rewire . | . . . . Trap . | . . . . Miscellaneous . | . . . . Route ------- -11/Scrapyard -10/Materials (discovered 3 exits: [*Mat] / [*Min] / [*Sub]) -10/Subcaves -8/Materials History --------- Turn | Location | Event 2 | -11/Scrapyard | Met Revision 17 9 | -11/Scrapyard | Discovered new exit (range 14) 85 | -11/Scrapyard | Entered Materials 225 | -10/Materials | Discovered new exit (range 5) 309 | -10/Materials | Build established: Mutant 519 | -10/Materials | Discovered new exit (range 7) 589 | -10/Materials | Discovered new exit (range 11) 1026 | -10/Materials | Entered Subcaves 1027 | -10/Subcaves | Approached by a straggling Scientist 1044 | -10/Subcaves | Shifting Twisted Machinery released Sub. Machine Gun 1045 | -10/Subcaves | Shifting Twisted Machinery released Mak. System Shield 1112 | -10/Subcaves | Shifting Twisted Machinery released Mak. System Restoration Module 1268 | -10/Subcaves | Discovered new exit (range 13) 1286 | -10/Subcaves | Shifting Twisted Machinery released Battle Rifle 1298 | -10/Subcaves | Core integrity fell below 50% 1323 | -10/Subcaves | Core integrity fell below 20% 1331 | -10/Subcaves | Entered Materials 1331 | -8/Materials | Evolved 4 slots: Propulsion x2, Utility x2 1349 | -8/Materials | Lost 3 parts (1p1n1w) 1537 | -8/Materials | Self-destructed Last Messages --------------- 01358_ Acquired Mni. Grenade Launcher. 01397_ Acquired Lgt. Nuclear Core. 01425_ Acquired Imp. Terrain Scanner. 01452_ W-25 Informer sends out distress signal. 01488_ Penetrated by Slug. 01496_ K-01 Serf collects debris. 01497_ Penetrated by Slug. 01500_ K-01 Serf collects debris. 01503_ Penetrated by Slug. 01506_ Lgt. Assault Rifle destroyed. 01507_ Lgt. Treads destroyed. 01507_ Critical hit (Burn: +37). 01512_ Slug penetrates Wall. 01512_ Aluminum Leg destroyed. 01515_ Penetrated by Slug. 01518_ Slug penetrates Wall. 01520_ Aluminum Leg destroyed. 01524_ Slug penetrates Wall. 01526_ H-55 Commando destroyed. 01526_ Switching to secondary target: Y-45 Defender. Map ----- +----------------------------------------------------+ | | | | | | | | | | | | | | | ???????????????????????????????#?????????????????? | | ?????????????????????????????????????????????????? | | ???????????????????#??????????????#??????????????? | | ?????????????????????##########??????????????????? | | ?????????????????????# #???#########??????? | | ?????????????????????# """ !#???# ??????? | | ???????????#???????#?# """ ##### """ """ #????? | | ????????????????##???# """ # # """ """ #????? | | ?????????????????#???# # # """ """ #????? | | ?????????????????????# """ # # """ """ #????? | | ????????????#???#????# """ + + """ """ #????? | | ?????????????#???????# """ # # #????? | | ?????????????????????# # # #????? | | ?????????????????????####+##### ###########????? | | ????????????????????????# #??# #####?????????? | | ????????????????????????#[#?## ??? | | ???????????????????? ?#?#%#??# " / ??? | | ????????????????????????#[#??# #####??? | | ????????? ?????#### #####@#?## ! #### #??????? | | ???????? Y #??#######???? #??????? | | ???????? ! #######????#????????? #??????? | | ???????????# ? ?????????????????????#????/??????? | | ??????????????????????????? ?????????????????????? | | ?????????????????????????????????????????????????? | | ?????????????????????????? ?????????? ??????????? | | ?????????????? ???? ?????????????????????????????? | | ??????????????? ?? ??????????#???????????????????? | | ???????????????????? ????? ??#??????????????????? | | ????????????????????????????????????? ???????????? | | ?????????????? ????????? ????????????????????????? | | ?????????????????????????????????????????????????? | | ??????????????????????#??????????????????????????? | | ?????????????????????????????#???????????????????? | | ?????????????????????????????????????????????????? | | ?????????????????????????????????????????????????? | | ?????????????????????????????????????????????????? | | ?????????????????????????????????????????????????? | | ?????????????????????????????????????????????????? | | ?????????????????????????????????????????????????? | | ?????????????????????????????????????????????????? | | ?????????????????????????????????????????????????? | | ?????????????????????????????????????????????????? | | ?????????????????????????????????????????????????? | +----------------------------------------------------+ Best States ------------- Heat Dissipation 39 Energy Generation 14 Energy Capacity 250 Matter Stores 300 Matter Capacity 300 Sight Range 16 Terrain Scan Range 16 Terrain Scan Density 10 Evasion (%) 40 Recoil Reduction 2 Item Schematics ----------------- None Robot Schematics ------------------ None Fabricated ------------ Nothing Repaired ---------- Nothing Alien Tech Used ----------------- None Achievements -------------- None Challenges ------------ None Game ------ Seed MicrodissipatorOpticalCorpse Manual? 0 Play Time 00:15:38 Cumulative 17.8 hours Start 2025.06.12 @ 22:17:18 End 2025.06.20 @ 21:41:41 Sessions 5 Manual Loads 0 Difficulty Rogue Special Mode None Game No. 17 Rogue 17 Adventurer 0 Explorer 0 Win Type - Total 0 Types 0/0/0/0/0/0/0/0/0/0 Lore% 8 Gallery% 13 Achievement% 15 Wizard Run 0 Options --------- Layout 0 ASCII 0 Keyboard 1 Movement Numpad Keybinds 0 Fullscreen 1 Font 18/SmallcapsGlow Map View 76x50 Zoom Use 0% Tactical HUD 1 Map Filters NONE Filters NONE Steam 1 RUN: da99db7e-127f-48b5-91b9-fe8ffb3b21b1